Body Name,Service Code,Expenditure Category,Payment Date,Transaction Number,Supplier,Net Amount
Barrow Borough Council,Barrow Town Deal,Professional fees,13-May-2021,200051317,Arcus Consulting LLP,"5,675.00"
Barrow Borough Council,Cost of collection,Council tax collection,24-May-2021,200051429,Liberata Uk Ltd,"1,007.03"
Barrow Borough Council,General grants,Other grants,13-May-2021,200051357,CLEP,"5,000.00"
Barrow Borough Council,Waste collection,Refuse collection - other works,13-May-2021,200051344,FCC Enviroment Services (UK) Ltd,"3,972.08"
Barrow Borough Council,Emergency planning,Professional fees,13-May-2021,200051327,FGH Security Ltd,"1,482.44"
Barrow Borough Council,Police elections,Postage,24-May-2021,200051431,Democracy Counts Ltd,"4,357.16"
Barrow Borough Council,Allotments,Water,24-May-2021,200051435,Water Plus Ltd,"1,203.08"
Barrow Borough Council,Housing repairs control account,Housing repairs invoices,06-May-2021,200051275,Howdens Joinery Ltd,998.87
Barrow Borough Council,Major works maintenance - HRA,Adaptations,27-May-2021,200051515,Coram Holding Ltd,697.19
Barrow Borough Council,Development control,Agency staff,27-May-2021,200051523,G2 Recruitment Solutions,"3,001.13"
Barrow Borough Council,Off street car parking,Buildings repairs and maintenance,13-May-2021,200051392,Bill Caulfield Electrical,"1,585.58"
Barrow Borough Council,Housing Benefits Admin,Solicitors fees,13-May-2021,200051393,Brown Barron Solicitors,519.25
Barrow Borough Council,Finance Department,Professional fees,13-May-2021,200051350,Cumbria County Council,855.63
Barrow Borough Council,Tenant demand maintenance - HRA,Gas works,24-May-2021,200051428,Sure Maintenance,"3,572.10"
Barrow Borough Council,Local Council Tax Reduction Scheme (LCTRS),LCTRS Admin,13-May-2021,200051342,Liberata Uk Ltd,"9,095.54"
Barrow Borough Council,Emergency planning,Professional fees,06-May-2021,200051292,FGH Security Ltd,"2,412.88"
Barrow Borough Council,Dock museum,Buildings repairs and maintenance,27-May-2021,200051497,Concept Elevators (UK) Ltd,"1,530.00"
Barrow Borough Council,Barrow park,Grounds maintenance - other works,06-May-2021,200051276,Continental Landscapes Ltd,540.00
Barrow Borough Council,Suspense accounts,Income suspense account,27-May-2021,200051475,Local Government Association,"5,400.00"
Barrow Borough Council,Housing Benefits Admin,Benefits private tenants,24-May-2021,200051429,Liberata Uk Ltd,738.49
Barrow Borough Council,Capitalised Planned Maintenance,Heating,27-May-2021,200051463,Plumbing Trade Supplies,"2,113.49"
Barrow Borough Council,Emergency planning,Professional fees,24-May-2021,200051419,FGH Security Ltd,"2,401.38"
Barrow Borough Council,Housing Benefits Admin,Benefits private tenants,13-May-2021,200051342,Liberata Uk Ltd,"7,522.64"
Barrow Borough Council,Forum 28,Removal of refuse,13-May-2021,200051387,FCC Recycling (UK) Ltd,"2,027.76"
Barrow Borough Council,Off street car parking,Buildings repairs and maintenance,13-May-2021,200051392,Bill Caulfield Electrical,"1,399.71"
Barrow Borough Council,Capitalised Planned Maintenance,Doors and windows,06-May-2021,200051295,SBP Ltd - Permadoor,"4,061.29"
Barrow Borough Council,Disabled Facilities Grant,Grants,27-May-2021,200051478,TK Access Solutions Ltd,"1,710.00"
Barrow Borough Council,Parks and open spaces,Grounds maintenance - schedule of works,06-May-2021,200051276,Continental Landscapes Ltd,"32,126.26"
Barrow Borough Council,Work in default,WID works,27-May-2021,200051476,Phoenix Cleaning Agency,"1,600.00"
Barrow Borough Council,Housing repairs control account,Housing repairs invoices,13-May-2021,200051311,Wilko Retail Ltd,870.00
Barrow Borough Council,Police elections,Other expenses,27-May-2021,200051451,Edmundson Electrical Ltd,"3,939.00"
Barrow Borough Council,Police elections,Printing and stationery,24-May-2021,200051431,Democracy Counts Ltd,"2,316.33"
Barrow Borough Council,Cemeteries,Buildings repairs and maintenance,27-May-2021,200051498,Hughes Brothers,884.62
Barrow Borough Council,Barrow town hall,Software maintenance,24-May-2021,200051448,Guardian Smart Reception Ltd,"1,760.00"
Barrow Borough Council,Barrow town hall,Maintenance contracts - TSU,24-May-2021,200051422,TESGL Ltd,529.00
Barrow Borough Council,Barrow Town Deal,Professional fees,27-May-2021,200051521,Hatch Associates Ltd,"3,385.00"
Barrow Borough Council,Corporate management,Professional fees,24-May-2021,200051401,Local Government Association,"4,500.00"
Barrow Borough Council,Voids maintenance - HRA,Void repairs,27-May-2021,200051498,Hughes Brothers,"18,309.54"
Barrow Borough Council,Off street car parking,Buildings repairs and maintenance,24-May-2021,200051396,Bill Caulfield Electrical,"1,335.33"
Barrow Borough Council,Waste collection,Refuse collection - other works,13-May-2021,200051344,FCC Enviroment Services (UK) Ltd,"10,429.20"
Barrow Borough Council,Capitalised Planned Maintenance,Rewires,06-May-2021,200051281,Keith Wilson Elec Con Ltd,"3,346.72"
Barrow Borough Council,Tenant demand maintenance - HRA,Routine Maintenance,27-May-2021,200051455,Howdens Joinery Ltd,961.52
Barrow Borough Council,Crematorium,Equipment purchase,24-May-2021,200051442,Obitus/Vivedia Ltd,577.42
Barrow Borough Council,Corporate management,Professional fees,13-May-2021,200051358,32West Ltd,"8,487.93"
Barrow Borough Council,Forum 28,Buildings repairs and maintenance,13-May-2021,200051386,Schofield Construction Ltd,"4,536.00"
Barrow Borough Council,Capitalised Planned Maintenance,Heating,27-May-2021,200051499,Sure Maintenance,"39,374.49"
Barrow Borough Council,Major works maintenance - HRA,Adaptations,06-May-2021,200051305,Allison Construction,"14,013.00"
Barrow Borough Council,Telephones Holding A/C,Telephone charges paid,27-May-2021,200051503,Liberata Uk Ltd,767.31
Barrow Borough Council,Capitalised Planned Maintenance,Roofs,06-May-2021,200051293,DLP Services (Northern) Ltd,"6,246.60"
Barrow Borough Council,Tenant demand maintenance - HRA,Routine Maintenance,06-May-2021,200051278,AK Fencing,"3,090.00"
Barrow Borough Council,Public health inspection,Professional fees,24-May-2021,200051423,Little & Caine Ltd,"1,988.00"
Barrow Borough Council,HRA Estates,Tenants Water Charges,13-May-2021,200051346,United Utilities Water Ltd,"188,229.71"
Barrow Borough Council,IR personal account,Tax deducted - CIS tax,13-May-2021,200051321,Lee Bowron Glazing Ltd,"-1,155.95"
Barrow Borough Council,Cyclical maintenance - HRA,Gas works,13-May-2021,200051336,Sure Maintenance,"6,539.87"
Barrow Borough Council,The park leisure centre,Professional fees,06-May-2021,200051267,APSE,"10,992.90"
Barrow Borough Council,Crematorium,Equipment purchase,06-May-2021,200051289,Searle Audio,"1,065.00"
Barrow Borough Council,The markets,Equipment maintenance,27-May-2021,200051520,Karcher (UK) Ltd,738.00
Barrow Borough Council,Capitalised Planned Maintenance,Rewires,06-May-2021,200051281,Keith Wilson Elec Con Ltd,"6,713.20"
Barrow Borough Council,Accelerated Towns Fund,Purchase of equipment,06-May-2021,200051271,Dave the Joiner,"4,000.00"
Barrow Borough Council,Mobile caretakers - HRA,Equipment purchase,13-May-2021,200051334,EE Payment Processing,"1,328.00"
Barrow Borough Council,Housing repairs control account,Housing repairs invoices,27-May-2021,200051454,DC Contracting,"2,750.00"
Barrow Borough Council,Tenant demand maintenance - HRA,Central overheads,13-May-2021,200051335,Hughes Brothers,"28,550.68"
Barrow Borough Council,Conducting elections,Printing and stationery,24-May-2021,200051431,Democracy Counts Ltd,"1,463.46"
Barrow Borough Council,Housing repairs control account,Housing repairs invoices,27-May-2021,200051481,Collett Locksmith,735.04
Barrow Borough Council,Housing repairs control account,Housing repairs invoices,27-May-2021,200051498,Hughes Brothers,"2,010.25"
Barrow Borough Council,Emergency planning,Hardship Relief/Grant COVID19,13-May-2021,200051366,Drop Zone Youth Projects,"4,459.20"
Barrow Borough Council,Waste collection,Refuse collection - other works,13-May-2021,200051344,FCC Enviroment Services (UK) Ltd,"22,040.00"
Barrow Borough Council,Waste collection,Refuse collection - contract,13-May-2021,200051344,FCC Enviroment Services (UK) Ltd,"62,568.27"
Barrow Borough Council,Cemeteries,Grounds maintenance - schedule of works,24-May-2021,200051413,Continental Landscapes Ltd,"11,079.80"
Barrow Borough Council,Licensing,Professional fees,06-May-2021,200051297,Ark Givendale Ltd,"2,614.90"
Barrow Borough Council,Estates management,Buildings repairs and maintenance,24-May-2021,200051402,Geoffrey Hall,"9,473.70"
Barrow Borough Council,Disabled Facilities Grant,Grants,27-May-2021,200051485,Lee Bowron Glazing Ltd,"4,335.00"
Barrow Borough Council,Emergency planning,Professional fees,24-May-2021,200051429,Liberata Uk Ltd,"1,584.00"
Barrow Borough Council,Food safety,Professional fees,06-May-2021,200051303,James Andrews Recruitment Solutions,800.00
Barrow Borough Council,Public conveniences,Water,24-May-2021,200051435,Water Plus Ltd,517.06
Barrow Borough Council,Finance Department,Professional fees,06-May-2021,200051304,Version 1,"1,790.00"
Barrow Borough Council,Voids maintenance - HRA,Void repairs,27-May-2021,200051498,Hughes Brothers,"1,065.78"
Barrow Borough Council,Local Council Tax Reduction Scheme (LCTRS),LCTRS Admin,24-May-2021,200051429,Liberata Uk Ltd,"1,007.03"
Barrow Borough Council,Housing Benefits Admin,Benefits council tenants,13-May-2021,200051342,Liberata Uk Ltd,"2,660.94"
Barrow Borough Council,Cost of collection,Professional fees,24-May-2021,200051429,Liberata Uk Ltd,750.00
Barrow Borough Council,Emergency planning,Professional fees,24-May-2021,200051429,Liberata Uk Ltd,800.00
Barrow Borough Council,The park leisure centre,Professional fees,27-May-2021,200051506,Lambert Smith Hampton,"7,300.00"
Barrow Borough Council,Barrow town hall,Buildings repairs and maintenance,13-May-2021,200051392,Bill Caulfield Electrical,582.22
Barrow Borough Council,Corporate management,Solicitors fees,06-May-2021,200051288,Livingstons Solicitors,"1,487.50"
Barrow Borough Council,Dock museum,Maintenance contracts - TSU,24-May-2021,200051422,TESGL Ltd,529.00
Barrow Borough Council,Allotments,Water,13-May-2021,200051356,Water Plus Ltd,"1,216.95"
Barrow Borough Council,Housing Benefits Admin,Benefits council tenants,24-May-2021,200051429,Liberata Uk Ltd,"3,000.00"
Barrow Borough Council,Capitalised Planned Maintenance,Rewires,13-May-2021,200051338,Rexel UK Ltd,"1,268.51"
Barrow Borough Council,Housing repairs control account,Housing repairs invoices,13-May-2021,200051335,Hughes Brothers,"10,934.32"
Barrow Borough Council,Tenant demand maintenance - HRA,Gas works,13-May-2021,200051336,Sure Maintenance,"15,133.50"
Barrow Borough Council,Crematorium,Maintenance contracts - venue,27-May-2021,200051524,Obitus/Vivedia Ltd,775.00
Barrow Borough Council,Finance Department,Professional fees,13-May-2021,200051353,Version 1,"20,188.00"
Barrow Borough Council,Housing repairs control account,Housing repairs invoices,27-May-2021,200051498,Hughes Brothers,"12,255.63"
Barrow Borough Council,Street cleansing,Street cleansing,13-May-2021,200051344,FCC Enviroment Services (UK) Ltd,"50,718.08"
Barrow Borough Council,Capitalised Planned Maintenance,Roofs,13-May-2021,200051389,Ward Contracting Ltd,864.19
Barrow Borough Council,Capitalised Planned Maintenance,Rewires,13-May-2021,200051338,Rexel UK Ltd,536.57
Barrow Borough Council,Corporate management,Professional fees,06-May-2021,200051306,Brathay Services Ltd,"6,000.00"
Barrow Borough Council,Public health inspection,Professional fees,27-May-2021,200051486,Little & Caine Ltd,"2,049.66"
Barrow Borough Council,The markets,Buildings repairs and maintenance,24-May-2021,200051396,Bill Caulfield Electrical,756.49
Barrow Borough Council,Finance Department,Professional fees,13-May-2021,200051343,LAVAT Consulting Ltd,720.00
Barrow Borough Council,Marina Village,Professional fees,13-May-2021,200051348,Lambert Smith Hampton,"1,500.00"
Barrow Borough Council,Cost of collection,Business rates collection,24-May-2021,200051429,Liberata Uk Ltd,600.00
Barrow Borough Council,Emergency planning,Professional fees,13-May-2021,200051327,FGH Security Ltd,"2,382.30"
Barrow Borough Council,The markets,Advertising,24-May-2021,200051445,Barrow Rugby Football Club Ltd,"1,000.00"
Barrow Borough Council,Disabled Facilities Grant,Grants,27-May-2021,200051485,Lee Bowron Glazing Ltd,"4,170.00"
Barrow Borough Council,Current assets - payments in advance,Payment in advance - GF,06-May-2021,200051282,Capita Business Services Limited,"16,799.20"
Barrow Borough Council,Dock Museum HLF Phase 2,Professional fees,13-May-2021,200051319,RG Parkins & Partners Ltd,650.00
Barrow Borough Council,Work in default,WID works,13-May-2021,200051373,Barrow Scrap Metal Ltd,500.00
Barrow Borough Council,Capitalised Planned Maintenance,Heating,27-May-2021,200051463,Plumbing Trade Supplies,"7,371.92"
Barrow Borough Council,Voids maintenance - HRA,Void repairs,06-May-2021,200051299,Hughes Brothers,"17,736.81"
Barrow Borough Council,Capitalised Planned Maintenance,Roofs,13-May-2021,200051328,DLP Services (Northern) Ltd,"11,190.06"
Barrow Borough Council,Barrow Town Deal,Professional fees,27-May-2021,200051521,Hatch Associates Ltd,"-3,300.00"
Barrow Borough Council,Voids maintenance - HRA,Void repairs,27-May-2021,200051498,Hughes Brothers,"23,472.57"
Barrow Borough Council,Tenant demand maintenance - HRA,Environmental enhancements,24-May-2021,200051407,Lee Bowron Glazing Ltd,"2,960.00"
Barrow Borough Council,Major works maintenance - HRA,Consultancy fees,13-May-2021,200051367,Progression Solicitors,"1,552.50"
Barrow Borough Council,Cost of collection,Business rates collection,13-May-2021,200051342,Liberata Uk Ltd,"2,728.66"
Barrow Borough Council,Conducting elections,Printing and stationery,24-May-2021,200051431,Democracy Counts Ltd,"1,139.27"
Barrow Borough Council,Barrow park,Grounds maintenance - schedule of works,06-May-2021,200051276,Continental Landscapes Ltd,"21,778.70"
Barrow Borough Council,Police elections,Postage,27-May-2021,200051457,Royal Mail,992.12
Barrow Borough Council,Major works maintenance - HRA,Consultancy fees,13-May-2021,200051367,Progression Solicitors,"2,002.50"
Barrow Borough Council,Cost of collection,Council tax collection,13-May-2021,200051342,Liberata Uk Ltd,"9,095.54"
Barrow Borough Council,The markets,Electricity,13-May-2021,200051323,NPower,827.30
Barrow Borough Council,Estates management,Water,13-May-2021,200051356,Water Plus Ltd,702.11
Barrow Borough Council,Capitalised Planned Maintenance,Rewires,06-May-2021,200051300,Rexel UK Ltd,"1,148.34"
Barrow Borough Council,Recycling,Recycling collection and processing,13-May-2021,200051344,FCC Enviroment Services (UK) Ltd,"40,576.53"
Barrow Borough Council,Forum 28,Maintenance contracts - TSU,13-May-2021,200051379,Integral UK Ltd,"1,104.26"
Barrow Borough Council,Capitalised Planned Maintenance,Rewires,06-May-2021,200051300,Rexel UK Ltd,"1,167.06"
Barrow Borough Council,Food safety,Professional fees,24-May-2021,200051406,NWIFCA,540.00
Barrow Borough Council,Waste collection,Refuse collection - other works,13-May-2021,200051344,FCC Enviroment Services (UK) Ltd,"18,250.67"
Barrow Borough Council,Police elections,Other expenses,27-May-2021,200051491,Andrew Thompson,"1,594.20"
Barrow Borough Council,Police elections,Other expenses,13-May-2021,200051359,Paul Farish,552.00
Barrow Borough Council,Forum 28,Water,27-May-2021,200051513,Water Plus Ltd,"1,251.51"
Barrow Borough Council,Capitalised Planned Maintenance,Rewires,27-May-2021,200051464,Keith Wilson Elec Con Ltd,"8,453.74"
Barrow Borough Council,Forum 28,Maintenance contracts - TSU,24-May-2021,200051422,TESGL Ltd,529.00
Barrow Borough Council,The markets,Water,27-May-2021,200051513,Water Plus Ltd,833.32
Barrow Borough Council,IR personal account,Tax deducted - CIS tax,27-May-2021,200051483,Cumbria Roofing Ulverston,"-1,720.00"
Barrow Borough Council,Playground,Parks & Playgrounds Repairs & Maintenance,06-May-2021,200051276,Continental Landscapes Ltd,"4,057.83"
Barrow Borough Council,Waste collection,Refuse & Recycling Bins Boxes & Bags,13-May-2021,200051344,FCC Enviroment Services (UK) Ltd,"1,790.50"
Barrow Borough Council,HRA Estates,Grounds maintenance - schedule of works,27-May-2021,200051456,Continental Landscapes Ltd,"5,638.33"
Barrow Borough Council,Capitalised Planned Maintenance,Roofs,27-May-2021,200051483,Cumbria Roofing Ulverston,"20,485.00"
Barrow Borough Council,Housing repairs control account,Housing repairs invoices,27-May-2021,200051455,Howdens Joinery Ltd,"1,003.82"
Barrow Borough Council,Current assets - stocks,Stationery stock,27-May-2021,200051496,Pitney Bowes Ltd,"1,629.65"
Barrow Borough Council,Voids maintenance - HRA,Void repairs,24-May-2021,200051412,Howdens Joinery Ltd,"1,366.31"
Barrow Borough Council,Tenant demand maintenance - HRA,Routine Maintenance,13-May-2021,200051321,Lee Bowron Glazing Ltd,"10,883.36"
Barrow Borough Council,Playground,Parks & Playgrounds Inspections & maintenance - contract,06-May-2021,200051276,Continental Landscapes Ltd,"15,694.42"
Barrow Borough Council,Crematorium,Memorials,24-May-2021,200051408,Dash Information Systems Ltd,780.00
Barrow Borough Council,Estates management,Buildings repairs and maintenance,27-May-2021,200051466,Bill Caulfield Electrical,"1,498.30"
Barrow Borough Council,Barrow town hall,Maintenance contracts - TSU,27-May-2021,200051509,ADW Consultants Ltd,"1,633.50"
Barrow Borough Council,Capitalised Planned Maintenance,Heating,27-May-2021,200051463,Plumbing Trade Supplies,"34,073.54"
Barrow Borough Council,Capitalised Planned Maintenance,Heating,27-May-2021,200051499,Sure Maintenance,"10,101.85"
Barrow Borough Council,Public conveniences,Building cleaning,06-May-2021,200051283,Growing Concerns,"3,531.17"
Barrow Borough Council,Off street car parking,Buildings repairs and maintenance,13-May-2021,200051360,Gilmour Fabrications,530.00
Barrow Borough Council,Homelessness,Homeless support funding,24-May-2021,200051430,Ravenscroft Developments,752.08
Barrow Borough Council,Voids maintenance - HRA,Void repairs,27-May-2021,200051498,Hughes Brothers,"1,130.47"
Barrow Borough Council,Major works maintenance - HRA,Adaptations,13-May-2021,200051328,DLP Services (Northern) Ltd,"3,373.62"
Barrow Borough Council,Parks and open spaces,Grounds maintenance - other works,06-May-2021,200051276,Continental Landscapes Ltd,"2,124.80"
Barrow Borough Council,Current assets - stocks,Postage stock,27-May-2021,200051496,Pitney Bowes Ltd,"4,048.49"
Barrow Borough Council,Housing Benefits Admin,Benefits private tenants,24-May-2021,200051429,Liberata Uk Ltd,"5,896.55"
Barrow Borough Council,Housing repairs control account,Housing repairs invoices,27-May-2021,200051455,Howdens Joinery Ltd,816.56
Barrow Borough Council,Crematorium,Maintenance contracts - venue,24-May-2021,200051442,Obitus/Vivedia Ltd,"6,740.00"
Barrow Borough Council,Waste collection,Refuse collection - other works,13-May-2021,200051344,FCC Enviroment Services (UK) Ltd,"1,182.39"
Barrow Borough Council,Waste collection,Refuse collection - other works,13-May-2021,200051344,FCC Enviroment Services (UK) Ltd,825.60
Barrow Borough Council,Housing repairs control account,Housing repairs invoices,27-May-2021,200051455,Howdens Joinery Ltd,"1,190.99"
Barrow Borough Council,Harding Rise Business Centre,Buildings repairs and maintenance,13-May-2021,200051313,FTS Fire & Secuirty Ltd,716.00
Barrow Borough Council,Crematorium,Grounds maintenance - other works,24-May-2021,200051413,Continental Landscapes Ltd,"1,565.41"
Barrow Borough Council,Crematorium,Maintenance contracts - venue,24-May-2021,200051440,RJS Waste Management UK Ltd,"3,750.00"
Barrow Borough Council,Capitalised Planned Maintenance,Doors and windows,06-May-2021,200051269,Richmond Joiners & Builders Ltd,"4,813.45"
Barrow Borough Council,Barrow BID,Other bodies expenditure,13-May-2021,200051340,Barrow BID Company Ltd,885.00
Barrow Borough Council,Barrow town hall,Removal of refuse,13-May-2021,200051387,FCC Recycling (UK) Ltd,"4,135.04"
Barrow Borough Council,Cyclical maintenance - HRA,Electrical testing,13-May-2021,200051391,Keith Wilson Elec Con Ltd,"1,094.70"
Barrow Borough Council,Emergency planning,Professional fees,27-May-2021,200051489,FGH Security Ltd,"2,305.57"
Barrow Borough Council,Cemeteries,Grounds maintenance - other works,24-May-2021,200051413,Continental Landscapes Ltd,"1,422.31"
Barrow Borough Council,Licensing,Solicitors fees,13-May-2021,200051393,Brown Barron Solicitors,"2,154.50"
Barrow Borough Council,Cyclical maintenance - HRA,Painting,27-May-2021,200051465,George Jones & Son (Contractors) Ltd,"13,546.27"
Barrow Borough Council,Off street car parking,Water,06-May-2021,200051268,Water Plus Ltd,"1,782.55"
Barrow Borough Council,Off street car parking,Property insurance - BBC Properties,13-May-2021,200051345,Pearl & Coutts Ltd,"1,734.90"
Barrow Borough Council,Human Resources,Subscriptions,27-May-2021,200051507,Cumbria County Council,"1,451.52"
Barrow Borough Council,Housing repairs control account,Housing repairs invoices,06-May-2021,200051299,Hughes Brothers,"16,380.72"
Barrow Borough Council,General grants,Contribution Cumbrian DHR (Domestic Homicide Review Pot),13-May-2021,200051350,Cumbria County Council,"1,125.00"
Barrow Borough Council,HRA share of CDC/NDC,Professional fees,06-May-2021,200051306,Brathay Services Ltd,"8,218.75"
Barrow Borough Council,Democratic representation and management,Mayor's honorarium,27-May-2021,200051482,Mayors Relief Fund Allowances Account,557.65
Barrow Borough Council,Barrow town hall,Maintenance contracts - TSU,13-May-2021,200051379,Integral UK Ltd,572.86
Barrow Borough Council,Voids maintenance - HRA,Void repairs,06-May-2021,200051299,Hughes Brothers,"21,294.71"
Barrow Borough Council,Telephones Holding A/C,Telephone charges paid,13-May-2021,200051322,EE Ltd,"1,792.09"
Barrow Borough Council,Barrow BID,Other bodies expenditure,13-May-2021,200051340,Barrow BID Company Ltd,"4,718.25"
Barrow Borough Council,Dock museum,Maintenance contracts - TSU,13-May-2021,200051379,Integral UK Ltd,585.97
Barrow Borough Council,Information technology,Data Line Rental,27-May-2021,200051503,Liberata Uk Ltd,784.46
Barrow Borough Council,Capitalised Planned Maintenance,Roofs,13-May-2021,200051389,Ward Contracting Ltd,"1,333.65"
Barrow Borough Council,Police elections,Printing and stationery,24-May-2021,200051431,Democracy Counts Ltd,593.52
Barrow Borough Council,Voids maintenance - HRA,Void repairs,27-May-2021,200051498,Hughes Brothers,"3,155.10"
Barrow Borough Council,Cyclical maintenance - HRA,Electrical testing,13-May-2021,200051391,Keith Wilson Elec Con Ltd,"2,480.40"
Barrow Borough Council,Dock museum,Publicity,24-May-2021,200051410,HSP Milners,995.00
Barrow Borough Council,The park leisure centre,Water,27-May-2021,200051513,Water Plus Ltd,949.30
Barrow Borough Council,RTB administration - HRA,Professional fees,24-May-2021,200051432,Lambert Smith Hampton,700.00
Barrow Borough Council,Harding Rise Business Centre,Professional fees,13-May-2021,200051349,AS Fire Safety Services,600.00
Barrow Borough Council,Major works maintenance - HRA,Repointing Walney,13-May-2021,200051328,DLP Services (Northern) Ltd,"1,539.08"
Barrow Borough Council,Voids maintenance - HRA,Void repairs,27-May-2021,200051498,Hughes Brothers,"5,587.97"
Barrow Borough Council,Major works maintenance - HRA,Adaptations,27-May-2021,200051490,DLP Services (Northern) Ltd,"5,187.49"
Barrow Borough Council,Harding Rise Business Centre,Water,24-May-2021,200051435,Water Plus Ltd,683.87
Barrow Borough Council,Voids maintenance - HRA,Void repairs,13-May-2021,200051335,Hughes Brothers,"1,742.05"
Barrow Borough Council,Telephones Holding A/C,Telephone charges paid,06-May-2021,200051290,EE Ltd,"1,914.91"
Barrow Borough Council,Waste collection,Refuse & Recycling Bins Boxes & Bags,06-May-2021,200051285,Craemer UK Ltd,"6,630.00"
Barrow Borough Council,Housing repairs control account,Housing repairs invoices,27-May-2021,200051516,UK Environmental & Asbestos Solutions Ltd,"1,275.00"
Barrow Borough Council,Estates management,Other expenses,06-May-2021,DD060521,Brown Barron Solicitors,"5,000.00"
Barrow Borough Council,HR,Childcare Vouchers,07-May-2021,DD070521,Sodexo,540.22
Barrow Borough Council,Corporate Costs,Bank Charges,10-May-2021,DD100521,HSBC,884.39
Barrow Borough Council,Revenue & Benefits,Postage,12-May-2021,DD120521,Royal Mail,"1,168.92"
Barrow Borough Council,CIS - Inland Revenue Account,CIS Tax,17-May-2021,DD170521,HMRC,"2,442.17"
Barrow Borough Council,DBS - Licensing,Professional fees,19-May-2021,DD190521,DBS,600.00
Barrow Borough Council,Homelessness,Homeless support funding,20-May-2021,DD200521,SRM Lettings,752.08
Barrow Borough Council,Homelessness,Homeless support funding,25-May-2021,DD250521,Sharples Estate Agents,"1,350.00"
Barrow Borough Council,Occupational Health,Training,25-May-2021,DD250521,Billingsgate Seafood,"1,350.00"
Barrow Borough Council,Corporate Costs,Professional fees,26-May-2021,DD260521,Allpay,"2,796.27"
Barrow Borough Council,Corporate Costs,Professional fees,26-May-2021,DD260521,Capita Business Services Limited,"3,665.84"
Barrow Borough Council,Homelessness,Homeless support funding,26-May-2021,DD260521,SRM Lettings,752.08
Barrow Borough Council,Disabled Facilities Grant,Grants,26-May-2021,DD260521,Ocean Construction,"6,173.28"
